bitfinex/quotes_BTCUSD_20250119
["timestamp","ask_amount","ask_price","bid_price","bid_amount"]
[1737330279195,0.0004232,101180.0,101170.0,0.348843]
[1737330279402,0.00091708,101180.0,101170.0,0.34834054]
[1737330280116,0.279642,101200.0,101170.0,0.09949754]
[1737330280371,0.098824,101190.0,101170.0,0.00049388]
[1737330280571,0.098833,101180.0,101170.0,0.00049388]
[1737330280747,0.00443632,101180.0,101170.0,0.00049388]
[1737330280948,0.30276686,101180.0,101170.0,0.00049388]
[1737330281389,0.10326932,101180.0,101170.0,0.00049388]
[1737330281624,0.00443632,101180.0,101170.0,0.00049388]
[1737330281895,0.30276686,101180.0,101170.0,0.00049388]
[1737330282100,0.20276686,101180.0,101170.0,0.00049388]
[1737330282397,0.10326932,101180.0,101170.0,0.00049388]
[1737330282625,0.19833054,101180.0,101170.0,0.00049388]
[1737330282765,0.49833054,101180.0,101170.0,0.00049388]
[1737330282964,0.25,101140.0,101090.0,0.313589]
[1737330283191,0.098884,101130.0,101100.0,0.09999252]
[1737330283502,0.49612354,101140.0,101100.0,0.09999252]
[1737330283703,0.69387254,101140.0,101100.0,0.09999252]
[1737330283905,0.59499154,101140.0,101100.0,0.09999252]
[1737330284148,0.49616554,101130.0,101100.0,0.00049498]
[1737330284325,0.098902,101110.0,101100.0,0.00049498]
[1737330284480,0.37459954,101110.0,101100.0,0.00049498]
[1737330284884,0.27459954,101110.0,101100.0,0.00049498]
[1737330285117,0.57459954,101110.0,101100.0,0.00049498]
[1737330285319,0.297843,101090.0,101040.0,0.37424703]
[1737330285489,0.59519754,101090.0,101050.0,0.09699754]
[1737330285694,0.098932,101080.0,101050.0,0.09699754]
[1737330285914,0.49630054,101080.0,101040.0,0.01733517]
[1737330286121,0.39749754,101080.0,101040.0,0.09999271]
[1737330286356,0.09896,101050.0,101040.0,0.00049517]
[1737330286500,0.1,101060.0,101040.0,0.1768162]
[1737330286701,0.395723,101090.0,101040.0,0.57320674]
[1737330286948,0.379253,101100.0,101060.0,0.296847]
[1737330287082,0.379253,101100.0,101070.0,0.09949754]
[1737330287083,0.0825,101100.0,101070.0,0.09949754]
[1737330287417,0.474359,101130.0,101090.0,0.098918]
[1737330287616,0.1777,101170.0,101120.0,0.17632103]
[1737330287797,0.098863,101150.0,101120.0,0.27581857]
[1737330288135,0.296656,101130.0,101090.0,0.29208203]
[1737330288338,0.59393654,101130.0,101090.0,0.21525854]
[1737330288669,0.098893,101120.0,101090.0,0.09949754]
[1737330288798,0.49615154,101130.0,101090.0,0.19841754]
[1737330288999,0.098904,101110.0,101080.0,0.01733517]
[1737330289202,0.098904,101110.0,101080.0,0.11683271]
[1737330289428,0.47979654,101120.0,101090.0,0.22141754]
[1737330289429,0.0825,101120.0,101090.0,0.22141754]
[1737330289589,0.0825,101120.0,101090.0,0.12249754]
[1737330289797,0.0825,101120.0,101080.0,0.21519517]
[1737330289798,0.098905,101110.0,101080.0,0.01733517]
[1737330290159,0.197819,101110.0,101080.0,0.11772143]
[1737330290382,0.00816883,101150.0,101090.0,0.47366157]
[1737330290583,0.181335,101180.0,101140.0,0.098865]
[1737330290779,0.0825,101180.0,101150.0,0.12249754]
[1737330291009,0.39718454,101170.0,101140.0,0.01684]
[1737330291201,0.098856,101160.0,101140.0,0.01684]
[1737330291408,0.098863,101150.0,101140.0,0.01684]
[1737330291521,0.197721,101160.0,101110.0,0.098895]
[1737330291736,0.49607954,101160.0,101120.0,0.19838554]
[1737330291942,0.098863,101150.0,101120.0,0.09949754]
[1737330292141,0.10283684,101160.0,101130.0,0.023]
[1737330292341,0.09949754,101150.0,101110.0,0.00049517]
[1737330292545,0.098884,101130.0,101110.0,0.09999271]
[1737330292788,0.098884,101130.0,101110.0,0.00049517]
[1737330292991,0.0033393,101130.0,101110.0,0.19889271]
[1737330293207,0.0033393,101130.0,101110.0,0.09999271]
[1737330293382,0.0033393,101130.0,101120.0,0.22138954]
[1737330293586,0.1,101210.0,101140.0,0.15]
[1737330293787,0.098816,101200.0,101170.0,0.023]
[1737330294040,0.098816,101200.0,101160.0,0.01684]
[1737330294041,0.098831,101190.0,101160.0,0.01684]
[1737330294185,0.29648,101190.0,101160.0,0.11633754]
[1737330294390,0.098834,101180.0,101160.0,0.11633754]
[1737330294721,0.296533,101170.0,101130.0,0.31347]
[1737330294920,0.098856,101160.0,101130.0,0.09949754]
[1737330295123,0.29720554,101160.0,101130.0,0.01733517]
[1737330295523,0.39720554,101160.0,101130.0,0.00049517]
[1737330295719,0.098872,101140.0,101130.0,0.00049517]
[1737330295918,0.3767054,101140.0,101130.0,0.00049517]
[1737330296120,0.37546954,101140.0,101130.0,0.00049517]
[1737330296570,0.27546954,101140.0,101130.0,0.00049517]
[1737330296720,0.37546954,101140.0,101130.0,0.00049517]
[1737330296920,0.175972,101140.0,101130.0,0.00049517]
[1737330297141,0.37546954,101140.0,101130.0,0.00049517]
[1737330297320,0.19766,101190.0,101130.0,0.09999271]
[1737330297520,0.098831,101190.0,101150.0,0.35415031]
[1737330297868,0.098831,101190.0,101160.0,0.01684]
[1737330297869,0.098843,101180.0,101160.0,0.01684]
[1737330298078,0.49480754,101190.0,101160.0,0.01684]
[1737330298079,0.47914,101190.0,101160.0,0.13933754]
[1737330298355,0.09883,101190.0,101160.0,0.23818954]
[1737330298513,0.09883,101190.0,101160.0,0.13933754]
[1737330298856,0.09883,101190.0,101160.0,0.01684]
[1737330298857,0.098843,101170.0,101160.0,0.01684]
[1737330299062,0.29652,101180.0,101160.0,0.01684]
[1737330299272,0.098843,101170.0,101160.0,0.01684]
[1737330299488,0.29652,101180.0,101160.0,0.01684]
[1737330299645,0.098843,101170.0,101160.0,0.01684]
[1737330300169,0.296521,101180.0,101160.0,0.01684]
[1737330300485,0.29717754,101180.0,101160.0,0.01684]
[1737330300686,0.347706,101160.0,101130.0,0.00049517]
[1737330301005,0.197726,101150.0,101130.0,0.00049517]
[1737330301129,0.098857,101160.0,101130.0,0.09999271]
[1737330301332,0.424799,101170.0,101140.0,0.023]
[1737330301536,0.424799,101170.0,101130.0,0.09999271]
[1737330301537,0.098872,101140.0,101130.0,0.00049517]
[1737330301773,0.19960534,101140.0,101130.0,0.00049517]
[1737330301974,0.19836954,101140.0,101130.0,0.00049517]
[1737330302461,0.34836954,101140.0,101130.0,0.00049517]
[1737330302681,0.098912,101100.0,101080.0,0.00088872]
[1737330302897,0.447767,101130.0,101090.0,0.098919]
[1737330302898,0.098895,101120.0,101090.0,0.098919]
[1737330303085,0.098886,101130.0,101090.0,0.49517654]
[1737330303390,0.197765,101130.0,101100.0,0.09949754]
[1737330303569,0.197765,101130.0,101100.0,0.19840654]
[1737330303570,0.098883,101130.0,101100.0,0.19840654]
[1737330303895,0.296565,101160.0,101120.0,0.35421331]
[1737330304108,0.569453,101170.0,101150.0,0.023]
[1737330304283,0.098864,101150.0,101130.0,0.01684]
[1737330304485,0.098872,101150.0,101130.0,0.11633754]
[1737330304645,0.37239154,101170.0,101130.0,0.11633754]
[1737330305005,0.371747,101170.0,101150.0,0.023]
[1737330305166,0.371747,101170.0,101130.0,0.1168332]
[1737330305167,0.197707,101160.0,101130.0,0.1168332]
[1737330305411,0.0752,101170.0,101140.0,0.09949754]
[1737330305808,0.174045,101170.0,101150.0,0.023]
[1737330306067,0.371733,101170.0,101150.0,0.023]
[1737330306234,0.098855,101160.0,101130.0,0.01733566]
[1737330306416,0.098855,101160.0,101130.0,0.00049566]
[1737330306417,0.098872,101140.0,101130.0,0.00049566]
[1737330306615,0.19836954,101140.0,101130.0,0.00049566]
[1737330307293,1.086855,101150.0,101130.0,0.00049566]
[1737330307294,0.49434,101150.0,101130.0,0.00049566]
[1737330307493,0.098872,101140.0,101130.0,0.00049566]
[1737330307953,0.49960543,101140.0,101130.0,0.00049566]
[1737330308287,0.49836954,101140.0,101130.0,0.00049566]
[1737330308462,0.19836954,101140.0,101130.0,0.00049566]
[1737330308617,0.098872,101140.0,101130.0,0.00049566]
[1737330309206,0.19836954,101140.0,101130.0,0.00049566]
[1737330309611,0.098872,101140.0,101130.0,0.00049566]
[1737330310198,0.19836954,101140.0,101130.0,0.00049566]
[1737330310623,0.098872,101140.0,101130.0,0.00049566]
[1737330310826,0.098854,101160.0,101130.0,0.3966362]
[1737330311047,0.00847818,101180.0,101140.0,0.09949754]
[1737330311187,0.1981045,101180.0,101150.0,0.023]
[1737330311388,0.1981045,101180.0,101150.0,0.12249754]
[1737330311389,0.0004235,101180.0,101150.0,0.12249754]
[1737330311612,0.0004235,101180.0,101170.0,0.121843]
[1737330311822,0.0004235,101180.0,101170.0,0.37134054]
[1737330312434,0.1149471,101220.0,101210.0,0.098804]
[1737330312435,0.0161491,101220.0,101210.0,0.098804]
[1737330312632,0.296213,101280.0,101240.0,0.098772]
[1737330312852,0.09874,101280.0,101250.0,0.09949754]
[1737330313055,0.0485,101290.0,101260.0,0.098753]
[1737330313327,0.09949754,101290.0,101280.0,0.25517731]
[1737330313522,0.09877,101310.0,101280.0,0.09949754]
[1737330313636,6e-05,101310.0,101280.0,0.19823254]
[1737330313836,0.29697154,101310.0,101270.0,0.11554]
[1737330314071,0.44693554,101300.0,101270.0,0.0168]
[1737330314266,0.62838554,101290.0,101280.0,0.00049615]
[1737330314472,0.47838554,101290.0,101280.0,0.00049615]
[1737330314667,6e-05,101310.0,101280.0,0.470702]
[1737330314870,6e-05,101310.0,101300.0,0.25515731]
[1737330315099,6e-05,101310.0,101300.0,0.37765485]
[1737330315299,6e-05,101310.0,101300.0,0.25593885]
[1737330315505,6e-05,101310.0,101300.0,0.35465485]
[1737330315707,6e-05,101310.0,101300.0,0.47765485]
[1737330315909,0.0157266,101330.0,101320.0,0.221697]
[1737330316136,0.0157266,101330.0,101320.0,0.35463585]
[1737330316286,0.0157266,101330.0,101320.0,0.09949754]
[1737330316492,0.0157266,101330.0,101320.0,0.19819454]
[1737330316742,0.0157266,101330.0,101320.0,0.35463585]
[1737330316942,0.0157266,101330.0,101310.0,0.115504]
[1737330317093,0.0157266,101330.0,101320.0,0.09949754]
[1737330317289,0.0157266,101330.0,101320.0,0.09999369]
[1737330317490,0.44161114,101330.0,101320.0,0.00049615]
[1737330317890,0.0157266,101330.0,101320.0,0.21549069]
[1737330318106,0.00017788,101330.0,101320.0,0.56033069]
[1737330318508,0.00017788,101330.0,101320.0,0.46033069]
[1737330318940,0.00017788,101330.0,101320.0,0.3187733]
[1737330319180,0.09886488,101330.0,101320.0,0.01729615]
[1737330319604,0.09886488,101330.0,101320.0,0.00049615]
[1737330319776,0.00017788,101330.0,101320.0,0.09999369]
[1737330319990,0.197352,101400.0,101340.0,0.297354]
[1737330320193,0.29676854,101390.0,101350.0,0.09949754]
[1737330320506,0.197297,101370.0,101320.0,0.15693746]
[1737330320721,0.098679,101340.0,101320.0,0.09999369]
[1737330320898,0.098687,101330.0,101320.0,0.00049615]
[1737330321104,0.19818454,101330.0,101320.0,0.00049615]
[1737330321706,0.197475,101280.0,101240.0,0.321234]
[1737330321907,0.296246,101270.0,101260.0,0.00049695]
[1737330322126,0.39574354,101270.0,101260.0,0.00049695]
[1737330322914,0.57453643,101270.0,101260.0,0.00049695]
[1737330323088,0.1,101260.0,101190.0,0.01769523]
[1737330323446,0.04994152,101340.0,101190.0,0.01769523]
[1737330323447,0.277393,101380.0,101330.0,0.1]
[1737330323609,0.0472,101350.0,101310.0,0.1]
[1737330323958,0.296067,101330.0,101300.0,0.15]
[1737330324075,0.374654,101340.0,101310.0,0.1]
[1737330324271,0.19737,101340.0,101320.0,0.1]
[1737330324477,0.0787,101400.0,101360.0,0.297302]
[1737330324478,0.275954,101400.0,101360.0,0.297302]
[1737330324800,0.098664,101360.0,101340.0,0.15]
[1737330325016,0.098659,101360.0,101340.0,0.19949754]
[1737330325227,0.493291,101360.0,101340.0,0.19949754]
[1737330325423,0.098684,101340.0,101320.0,0.25]
[1737330325630,0.098687,101330.0,101310.0,0.25]
[1737330325825,0.098697,101320.0,101300.0,0.25]
[1737330326028,0.098706,101310.0,101300.0,0.1]
[1737330326277,0.296153,101300.0,101280.0,0.1]
[1737330326541,0.098721,101300.0,101280.0,0.34949754]
[1737330326798,0.098726,101290.0,101280.0,0.19949754]
[1737330326943,0.197439,101300.0,101280.0,0.34949754]
[1737330327174,0.079,101380.0,101340.0,0.25]
[1737330327320,0.09866,101360.0,101350.0,0.19949754]
[1737330327533,0.098662,101360.0,101340.0,0.1]
[1737330327744,0.197356,101340.0,101310.0,0.15]
[1737330327962,0.079,101330.0,101310.0,0.09949754]
[1737330328161,0.079,101330.0,101310.0,0.34949754]
[1737330328383,0.296092,101320.0,101310.0,0.00049713]
[1737330328589,0.098697,101320.0,101310.0,0.09999467]
[1737330328760,0.177651,101370.0,101350.0,0.1]
[1737330328965,0.177649,101370.0,101350.0,0.34949754]
[1737330329255,0.079,101370.0,101360.0,0.29815554]
[1737330329460,0.079,101370.0,101350.0,0.1]
[1737330329663,0.0791,101400.0,101360.0,0.34949754]
[1737330330018,0.0791,101400.0,101390.0,0.25]
[1737330330241,0.0001,101400.0,101390.0,0.19949754]
[1737330330397,0.0001,101400.0,101390.0,0.34949754]
[1737330330928,0.09959754,101400.0,101360.0,0.25049713]
[1737330331103,0.098643,101380.0,101360.0,0.19999467]
[1737330331270,0.29592,101380.0,101370.0,0.19949754]
[1737330331774,0.39457,101380.0,101360.0,0.10049713]
[1737330331974,0.0001,101400.0,101390.0,0.1]
[1737330332246,0.0001,101400.0,101390.0,0.34949754]
[1737330332386,0.098629,101390.0,101380.0,0.1]
[1737330332722,0.098644,101380.0,101370.0,0.1]
[1737330332866,0.098644,101380.0,101360.0,0.25049713]
[1737330333067,0.098645,101380.0,101370.0,0.19949754]
[1737330333270,0.098648,101370.0,101360.0,0.10049713]
[1737330333544,0.176048,101370.0,101360.0,0.00049713]
[1737330333678,0.27554554,101370.0,101360.0,0.00049713]
[1737330334072,0.27554554,101370.0,101360.0,0.09999467]
[1737330334073,0.176048,101370.0,101360.0,0.09999467]
[1737330334274,0.471996,101400.0,101380.0,0.1]
[1737330334475,0.373363,101400.0,101390.0,0.19949754]
[1737330334719,0.0001,101400.0,101390.0,0.34949754]
[1737330334926,0.0001,101400.0,101390.0,0.09949754]
[1737330334927,0.098719,101400.0,101390.0,0.09949754]
[1737330335152,0.098629,101390.0,101380.0,0.118]
[1737330335291,0.29675554,101390.0,101360.0,0.10049713]
[1737330335521,0.098648,101370.0,101360.0,0.10049713]
[1737330335746,0.098648,101370.0,101360.0,0.19999467]
[1737330335981,0.197289,101380.0,101360.0,0.19999467]
[1737330336181,0.098638,101380.0,101370.0,0.19949754]
[1737330336390,0.197345,101400.0,101360.0,0.10049713]
[1737330336391,0.098648,101370.0,101360.0,0.10049713]
[1737330336688,0.098648,101370.0,101360.0,0.00049713]
[1737330337082,0.098648,101370.0,101360.0,0.10049713]
[1737330337490,0.098648,101370.0,101360.0,0.19999467]
[1737330338000,0.098648,101370.0,101360.0,0.00049713]
[1737330338399,0.098629,101390.0,101380.0,0.1]
[1737330338558,0.197345,101400.0,101380.0,0.19949754]
[1737330338766,0.29597,101400.0,101390.0,0.19949754]
[1737330339416,0.098646,101380.0,101370.0,0.1]
[1737330339622,0.295934,101380.0,101370.0,0.19949754]
[1737330339823,0.295934,101380.0,101360.0,0.00049713]
[1737330339824,0.098648,101370.0,101360.0,0.10049713]
[1737330339982,0.098648,101370.0,101360.0,0.00049713]
[1737330340373,0.177948,101370.0,101360.0,0.00049713]
[1737330340575,0.177948,101370.0,101360.0,0.19999467]
[1737330340829,0.197258,101390.0,101380.0,0.1]
[1737330341030,0.098635,101390.0,101380.0,0.19949754]
[1737330341169,0.098635,101390.0,101380.0,0.34949754]
[1737330341572,0.0001,101400.0,101390.0,0.1]
[1737330341816,0.0001,101400.0,101390.0,0.34949754]
[1737330341994,0.0001,101400.0,101390.0,0.59812654]
[1737330342194,0.09108107,101420.0,101410.0,0.348609]
[1737330342537,0.07428107,101420.0,101410.0,1.04151494]
[1737330342674,0.05385042,101420.0,101410.0,1.0906319]
[1737330342875,0.0157266,101430.0,101420.0,0.35]
[1737330343123,0.0004263,101480.0,101470.0,0.15]
[1737330343344,0.0989673,101480.0,101470.0,0.34949754]
[1737330343674,0.0989673,101480.0,101470.0,0.19999467]
[1737330344295,0.0989673,101480.0,101470.0,0.09999467]
[1737330344511,0.0989673,101480.0,101470.0,0.00049713]
[1737330344713,0.0004263,101480.0,101470.0,0.44854567]
[1737330345060,0.0004263,101480.0,101470.0,0.54854567]
[1737330345815,0.0004263,101480.0,101470.0,0.34999467]
[1737330345958,0.0004263,101480.0,101470.0,0.36799467]
[1737330346418,0.0004263,101480.0,101470.0,0.56654567]
[1737330346920,0.0004263,101480.0,101470.0,0.36743467]
[1737330347268,0.0989673,101480.0,101470.0,0.21743467]
[1737330347469,0.0004263,101480.0,101470.0,0.36743467]
[1737330347677,0.0004263,101480.0,101470.0,0.74139407]
[1737330347876,0.0099678,101500.0,101490.0,0.448531]
[1737330348077,0.088468,101560.0,101550.0,0.1]
[1737330348298,0.00348032,101560.0,101540.0,0.1]
[1737330348501,0.098473,101550.0,101540.0,0.19949754]
[1737330348935,0.098501,101530.0,101520.0,0.1]
[1737330349083,0.10210857,101530.0,101520.0,0.19949754]
[1737330349306,0.10210857,101530.0,101520.0,0.00049713]
[1737330349716,0.18170857,101530.0,101520.0,0.00049713]
[1737330350143,0.28120611,101530.0,101520.0,0.00049713]
[1737330350353,0.43120611,101530.0,101520.0,0.00049713]
[1737330350588,0.18170857,101530.0,101520.0,0.00049713]
[1737330350793,0.28120611,101530.0,101520.0,0.00049713]
[1737330351207,0.43120611,101530.0,101520.0,0.00049713]
[1737330351379,0.098531,101490.0,101480.0,0.25]
[1737330351584,0.295589,101500.0,101490.0,0.1]
[1737330351801,0.295589,101500.0,101490.0,0.19949754]
[1737330352317,0.098529,101500.0,101490.0,0.19949754]
[1737330352516,0.098531,101490.0,101480.0,0.25]
[1737330352721,0.098531,101490.0,101480.0,0.34949754]
[1737330352867,0.098541,101480.0,101470.0,0.1]
[1737330353060,0.098541,101480.0,101460.0,0.1]
[1737330353061,0.098551,101470.0,101460.0,0.1]
[1737330353267,0.098551,101470.0,101460.0,0.19949754]
[1737330353474,0.372132,101480.0,101470.0,0.0975]
[1737330353674,0.372132,101480.0,101470.0,0.19699754]
[1737330353914,0.098551,101470.0,101460.0,0.0975]
[1737330354110,0.098551,101470.0,101440.0,0.0975]
[1737330354111,0.394271,101460.0,101440.0,0.0975]
[1737330354331,0.09857,101450.0,101440.0,0.24949754]
[1737330354553,0.197133,101460.0,101420.0,0.0975]
[1737330354737,0.197133,101460.0,101440.0,0.2475]
[1737330354738,0.09857,101450.0,101440.0,0.2475]
[1737330354917,0.29567,101470.0,101460.0,0.0975]
[1737330355119,0.591219,101490.0,101470.0,0.0975]
[1737330355325,0.00049819,101490.0,101480.0,0.19699754]
[1737330355540,0.09902919,101490.0,101480.0,0.34699754]
[1737330355723,0.098541,101480.0,101470.0,0.0975]
[1737330355933,0.098551,101470.0,101460.0,0.0174]
[1737330356134,0.098561,101460.0,101450.0,0.0975]
[1737330356318,0.394233,101470.0,101450.0,0.19699754]
[1737330356533,0.295673,101470.0,101460.0,0.19699754]
[1737330356974,0.098561,101460.0,101450.0,0.0975]
[1737330357117,0.295671,101470.0,101460.0,0.0975]
[1737330357318,0.295671,101470.0,101460.0,0.19699754]
[1737330357522,0.394189,101480.0,101460.0,0.34699754]
[1737330357523,0.295642,101480.0,101460.0,0.34699754]
[1737330357761,0.098551,101470.0,101460.0,0.34699754]
[1737330357962,0.0004266,101530.0,101480.0,0.346041]
[1737330358301,0.098505,101520.0,101490.0,0.21439754]
[1737330358436,0.295541,101510.0,101490.0,0.09949754]
[1737330358644,0.197016,101520.0,101490.0,0.19699754]
[1737330358844,0.295538,101510.0,101480.0,0.24764828]
[1737330359164,0.098514,101510.0,101490.0,0.19699754]
[1737330359340,0.098531,101490.0,101480.0,0.00014828]
[1737330360080,0.863876,101500.0,101480.0,0.00014828]
[1737330360081,0.418281,101500.0,101480.0,0.00014828]
[1737330360407,0.3772216,101530.0,101490.0,0.64258754]
[1737330360612,0.0817266,101530.0,101510.0,0.15]
[1737330360754,0.1802196,101530.0,101520.0,0.19699754]
[1737330360949,0.1802196,101530.0,101500.0,0.0975]
[1737330361197,0.1802196,101530.0,101500.0,0.34699754]
[1737330361460,0.18245529,101530.0,101490.0,0.2475]
[1737330361816,0.295539,101510.0,101490.0,0.09949754]
[1737330361996,0.295527,101520.0,101490.0,0.34714582]
[1737330362313,0.098505,101520.0,101500.0,0.15]
[1737330362510,0.098522,101500.0,101490.0,0.00014828]
[1737330362686,0.295542,101510.0,101490.0,0.00014828]
[1737330363013,0.0817266,101530.0,101500.0,0.19699754]
[1737330363241,0.0817266,101530.0,101510.0,0.15]
[1737330363447,0.098506,101520.0,101490.0,0.24764828]
[1737330363620,0.098522,101500.0,101490.0,0.00014828]
[1737330363764,0.20175111,101500.0,101490.0,0.00014828]
[1737330363964,0.19801954,101500.0,101490.0,0.00014828]
[1737330364456,0.20175121,101500.0,101490.0,0.00014828]
[1737330364625,0.47871954,101500.0,101490.0,0.00014828]
[1737330364802,0.197063,101490.0,101460.0,0.16688]
[1737330365008,0.1282,101500.0,101470.0,0.34699754]
[1737330365210,0.295598,101490.0,101470.0,0.19699754]
[1737330365412,0.1282,101500.0,101480.0,0.2475]
[1737330365628,0.1282,101500.0,101480.0,0.34699754]
[1737330365629,0.226723,101500.0,101480.0,0.34699754]
[1737330365836,0.1262292,101500.0,101480.0,0.34699754]
[1737330366038,0.196921,101570.0,101510.0,0.0975]
[1737330366263,0.09848,101550.0,101530.0,0.19699754]
[1737330366407,0.098484,101540.0,101520.0,0.2475]
[1737330366600,0.098493,101530.0,101510.0,0.16688]
[1737330366801,0.098493,101530.0,101510.0,0.01688]
[1737330366802,0.098502,101520.0,101510.0,0.01688]
[1737330367043,0.393956,101540.0,101510.0,0.11637754]
[1737330367242,0.29647154,101540.0,101510.0,0.01688]
[1737330367419,0.098502,101520.0,101510.0,0.00014842]
[1737330367989,0.35173083,101520.0,101510.0,0.00014842]
[1737330368103,0.34799954,101520.0,101510.0,0.00014842]
[1737330368332,0.19799954,101520.0,101510.0,0.00014842]
[1737330368637,0.098502,101520.0,101510.0,0.00014842]
[1737330368837,0.24379954,101520.0,101510.0,0.00014842]
[1737330369040,0.418018,101520.0,101490.0,0.24434842]
[1737330369234,0.1225,101520.0,101500.0,0.34384596]
[1737330369659,0.22101,101520.0,101500.0,0.34384596]
[1737330369854,0.295466,101540.0,101510.0,0.24434842]
[1737330370058,0.196875,101590.0,101550.0,0.0975]
[1737330370304,0.19695,101580.0,101560.0,0.09949754]
[1737330370502,0.19695,101580.0,101550.0,0.14684842]
[1737330370503,0.19818054,101580.0,101550.0,0.14684842]
[1737330370747,0.19818054,101580.0,101540.0,0.24434842]
[1737330370748,0.29537,101570.0,101540.0,0.24434842]
[1737330371024,0.29641354,101570.0,101530.0,0.24434842]
[1737330371174,0.196949,101550.0,101520.0,0.26122842]
[1737330371370,0.278341,101560.0,101530.0,0.34399438]
[1737330371580,0.098477,101550.0,101530.0,0.34399438]
[1737330371781,0.475284,101560.0,101530.0,0.34399438]
[1737330372017,0.0814,101560.0,101540.0,0.24434842]
[1737330372217,0.098473,101550.0,101540.0,0.34384596]
[1737330372420,0.098483,101540.0,101530.0,0.00014842]
[1737330373659,0.19921163,101540.0,101530.0,0.00014842]
[1737330373856,0.098483,101540.0,101530.0,0.00014842]
[1737330374182,6e-05,101580.0,101550.0,0.24434842]
[1737330374413,6e-05,101580.0,101570.0,0.24434842]
[1737330374595,6e-05,101580.0,101570.0,0.44229996]
[1737330374934,6e-05,101580.0,101570.0,0.34384596]
[1737330375141,0.098504,101580.0,101560.0,0.24434842]
[1737330375344,0.19696,101580.0,101560.0,0.09949754]
[1737330375540,6e-05,101580.0,101570.0,0.09949754]
[1737330375787,6e-05,101580.0,101570.0,0.19699754]
[1737330375990,6e-05,101580.0,101570.0,0.34384596]
[1737330376191,0.098454,101570.0,101560.0,0.14699684]
[1737330376390,0.098454,101570.0,101560.0,0.09964596]
[1737330376548,0.098454,101570.0,101560.0,0.00014842]
[1737330377965,6e-05,101580.0,101570.0,0.34280242]
[1737330378167,0.6383138,101610.0,101590.0,0.0975]
[1737330378462,0.2446308,101610.0,101600.0,0.09949754]
[1737330378625,0.098425,101600.0,101590.0,0.34384596]
[1737330379035,0.098434,101590.0,101580.0,0.24434842]
[1737330379213,0.295292,101600.0,101580.0,0.19699754]
[1737330379439,0.7367408,101610.0,101590.0,0.19699754]
[1737330379635,0.7367408,101610.0,101600.0,0.0975]
[1737330379636,0.34355179,101610.0,101600.0,0.0975]
[1737330379835,0.098425,101600.0,101590.0,0.34384596]
[1737330380060,0.098425,101600.0,101590.0,0.09949754]
[1737330380199,0.0983358,101600.0,101590.0,0.09949754]
[1737330380534,0.098444,101580.0,101570.0,0.24434842]
[1737330380741,0.098444,101580.0,101560.0,0.24434842]
[1737330380742,0.098454,101570.0,101560.0,0.24434842]
[1737330380917,0.098454,101570.0,101560.0,0.24634596]
[1737330381132,0.196889,101580.0,101550.0,0.0975]
[1737330381465,0.098493,101530.0,101520.0,0.0975]
[1737330381782,0.394,101530.0,101500.0,0.0975]
[1737330381928,0.394034,101520.0,101500.0,0.24634596]
[1737330382133,0.098512,101510.0,101500.0,0.09964596]
[1737330382333,0.098512,101510.0,101500.0,0.19714596]
[1737330382334,0.176512,101510.0,101500.0,0.19714596]
[1737330382549,0.176512,101510.0,101500.0,0.00014842]
[1737330382752,0.27224101,101510.0,101500.0,0.00014842]
[1737330382931,0.248522,101500.0,101490.0,0.00089481]
[1737330383132,0.098541,101480.0,101470.0,0.0008946]
[1737330383352,0.19927046,101480.0,101470.0,0.00139279]
[1737330383531,0.19803854,101480.0,101470.0,0.00139279]
[1737330383752,0.098541,101480.0,101470.0,0.00139279]
[1737330384285,0.34927033,101480.0,101470.0,0.00139279]
[1737330384490,0.34927033,101480.0,101400.0,0.347237]
[1737330384491,0.09859,101430.0,101420.0,0.0975]
[1737330384638,0.098597,101430.0,101420.0,0.19699754]
[1737330384839,0.098597,101430.0,101390.0,0.0975]
[1737330384840,0.078,101430.0,101390.0,0.0975]
[1737330385040,0.078,101430.0,101380.0,0.09839376]
[1737330385041,0.197223,101410.0,101380.0,0.09839376]
[1737330385357,0.098629,101390.0,101380.0,0.34473972]
[1737330385557,0.295876,101400.0,101390.0,0.14684842]
[1737330385905,0.098629,101390.0,101380.0,0.09839376]
[1737330386128,0.098629,101390.0,101380.0,0.00089376]
[1737330386438,0.27612654,101390.0,101380.0,0.00089376]
[1737330386959,0.27862654,101390.0,101380.0,0.00089376]
[1737330387168,0.27612654,101390.0,101380.0,0.00089376]
[1737330387368,0.176629,101390.0,101380.0,0.00089376]
[1737330387594,0.37726354,101390.0,101360.0,0.14613804]
[1737330387800,0.098658,101360.0,101340.0,0.09839355]
[1737330388114,0.098658,101360.0,101340.0,0.00089355]
[1737330388115,0.098667,101350.0,101340.0,0.00089355]
[1737330388565,0.148567,101350.0,101340.0,0.00089355]
[1737330388742,0.24929794,101350.0,101340.0,0.00089355]
[1737330388886,0.24806454,101350.0,101340.0,0.00089355]
[1737330389087,0.00049732,101350.0,101340.0,0.14703159]
[1737330389410,0.00049732,101350.0,101340.0,0.34402913]
[1737330389799,0.19866186,101350.0,101340.0,0.00089355]
[1737330390009,0.27789535,101350.0,101340.0,0.00089355]
[1737330390209,0.27666186,101350.0,101340.0,0.00089355]
[1737330390410,0.27916186,101350.0,101340.0,0.00089355]
[1737330390609,0.42666186,101350.0,101340.0,0.00089355]
[1737330390811,0.098706,101310.0,101300.0,0.00063162]
[1737330391015,0.19943746,101310.0,101300.0,0.00063162]
[1737330391620,0.19820354,101310.0,101300.0,0.00063162]
[1737330391824,0.098698,101320.0,101300.0,0.19762916]
[1737330392081,0.098706,101310.0,101300.0,0.00063162]
[1737330392433,0.0999399,101310.0,101300.0,0.00063162]
[1737330392615,0.39530901,101320.0,101300.0,0.14676966]
[1737330392817,0.29660301,101320.0,101300.0,0.14676966]
[1737330393017,0.098706,101310.0,101300.0,0.24426966]
[1737330393247,0.098706,101310.0,101300.0,0.14652587]
[1737330393448,0.098706,101310.0,101300.0,0.00038783]
[1737330393851,0.09993982,101310.0,101300.0,0.00038783]
[1737330394053,0.32753736,101310.0,101300.0,0.00038783]
[1737330394222,0.32380354,101310.0,101300.0,0.00038783]
[1737330394840,0.224306,101310.0,101300.0,0.00038783]
[1737330395238,0.59271901,101320.0,101310.0,0.24363804]
[1737330395239,0.00049701,101320.0,101310.0,0.24363804]
[1737330395437,0.00049701,101320.0,101310.0,0.44184158]